[Event "FIDE WY-U16 Olympiad 2022"]
[Site "Nakhchivan"]
[Date "2022.10.04"]
[Round "3.1"]
[White "Orozbaev, Eldiar"]
[Black "Mendez Machado, Andre"]
[Result "1-0"]
[ECO "A45"]
[WhiteElo "2344"]
[BlackElo "2009"]
[Annotator "TA"]
[PlyCount "108"]
[EventDate "2022.10.02"]
[EventType "team-tourn"]
[EventCountry "AZE"]
[SourceTitle "playchess.com"]
[Source "ChessBase"]
[SourceQuality "1"]
[WhiteTeam "Kyrgyzstan"]
[BlackTeam "Panama"]
[WhiteTeamCountry "KGZ"]
[BlackTeamCountry "PAN"]
[TimeControl "40/5400+30:1800+30"]

{[%evp 15,108,-8,0,0,-9,-23,0,0,0,14,40,30,30,31,69,64,74,75,83,75,137,57,440,435,459,458,452,451,427,220,221,210,210,9,229,231,230,225,225,223,198,119,116,126,137,131,208,202,203,154,141,135,150,132,119,90,91,92,187,186,302,292,310,275,355,355,608,604,559,365,458,348,338,212,172,166,618,605,563,485,614,611,602,585,569,544,1705,597,29982,29983,29983,29984,29991,29992,29992]} 1. d4 {[%emt 0:00:03]} Nf6 {[%emt 0:00:15]} 2. Bg5 {[%emt 0:00:30]} d5 {[%emt 0:00:44]} 3. Bxf6 {[%emt 0:00:16]} exf6 {[%emt 0:00:02]} 4. e3 {[%emt 0:00:31]} Bd6 {[%emt 0:01:22]} 5. c4 {[%emt 0:01:04]} dxc4 {[%emt 0:04:26]} 6. Bxc4 {[%emt 0:00:17]} O-O {[%emt 0:00:29]} 7. Nc3 {[%emt 0:07:38]} f5 {[%emt 0:07:12]} 8. Nf3 {[%emt 0:01:01]} Nd7 {[%emt 0:00:51][%cal Bb8d7,Bd7f6,Bf6e4][%mdl 32]} 9. Qc2 {[%emt 0:08:25] is the legacy move (9.0-0). D00: 1 d4 d5: Unusual lines.} Nf6 {[%emt 0:01:57]} 10. O-O-O {[%emt 0:00:05] [#]} Bb4 $146 {[%emt 0:11:03]} ({Predecessor:} 10... a6 11. h4 Bb4 12. Ne5 Bxc3 13. Qxc3 Qe7 14. h5 Ne4 15. Qc2 Nd6 16. Bd3 Be6 {1-0 (49) Nisipeanu,L (2670)-Boros,D (2504) Pardubice 2013}) 11. Ne5 {[%emt 0:01:30] The position is equal.} Bxc3 {[%emt 0:00:45]} 12. Qxc3 {[%emt 0:00:05]} Ne4 {[%emt 0:03:40]} 13. Qc2 {[%emt 0:00:05]} Nd6 {[%emt 0:09:02]} 14. Bd3 {[%emt 0:00:41][%cal Og2g4]} Be6 {[%emt 0:13:13]} 15. g4 $1 {[%emt 0:01:09][%cal Rg4f5]} fxg4 {[%emt 0:02:11]} 16. Bxh7+ {[%emt 0:01:02]} Kh8 {[%emt 0:00:01]} 17. h3 {[%emt 0:06:34]} gxh3 {[%emt 0:05:23]} ({Black should try} 17... g3) 18. f4 {[%emt 0:02:41] White is much more active.} (18. Bd3 $16) 18... g6 $2 {[%emt 0:05:39][%mdl 8192] [#]} (18... Qh4 $1 $14 19. d5 Qxh7 20. dxe6 Qxc2+ 21. Kxc2 Kg8) 19. Bxg6 $1 $18 {[%emt 0:00:21][%mdl 576] Demolition} fxg6 {[%emt 0:00:08]} 20. Qxg6 {[%emt 0:07:32] White threatens Qh6+ and mate.} Rf6 {[%emt 0:06:49]} (20... Bf5 21. Rxh3+ $3 {[%mdl 512]} Bxh3 22. Qh6+ Kg8 23. Rg1+) 21. Qh5+ {[%emt 0:00:04]} Kg7 {[%emt 0:00:34] White must now prevent ...Rh6.} 22. d5 {[%emt 0:01:13]} (22. Rhg1+ $142 Kf8 23. Qh7) 22... Rh6 {[%emt 0:12:59]} 23. Rdg1+ {[%emt 0:00:09]} Kh7 {[%emt 0:00:02] [#]} 24. Qxh6+ {[%emt 0:01:46][%mdl 512]} Kxh6 {[%emt 0:00:01]} 25. dxe6 {[%emt 0:00:06]} Qh4 {[%emt 0:07:26]} 26. Nf3 $1 {[%emt 0:00:48][%mdl 1024] White has strong compensation.} Qh5 {[%emt 0:02:08]} 27. Rg3 {[%emt 0:00:05]} Qc5+ {[%emt 0:00:50]} 28. Kb1 {[%emt 0:01:22] Dancing on a razor blade.} (28. Kd1 $1 $18) 28... Qf5+ $16 {[%emt 0:00:11]} 29. Ka1 {[%emt 0:00:05]} Qxe6 {[%emt 0:00:20]} (29... Qh5 $2 30. Rgxh3 Qxh3 31. Rxh3+ Kg6 32. Ng5 $18) 30. Nd4 {[%emt 0:00:18][%mdl 64] Deflection} (30. Rhxh3+ Qxh3 31. Rxh3+ Kg6 $16) 30... Qd5 {[%emt 0:04:46] [#]} (30... Qg6 $16 31. Rhxh3+ (31. Rxg6+ Kxg6 32. Rxh3 Re8 $16) 31... Kg7) 31. e4 $1 $18 {[%emt 0:01:00]} Qh5 {[%emt 0:00:48]} 32. Rgxh3 {[%emt 0:00:04]} Qxh3 {[%emt 0:00:07]} 33. Rxh3+ {[%emt 0:00:04][%mdl 4096] Endgame KRN-KRN} Kg6 {[%emt 0:00:27]} 34. Rg3+ {[%emt 0:00:27]} Kf7 {[%emt 0:00:16]} 35. e5 {[%emt 0:00:06]} c5 {[%emt 0:01:06]} 36. Nb3 {[%emt 0:04:15]} Ne4 {[%emt 0:00:11]} (36... Rh8 $16 {was worth a try.} 37. a3 Nf5) 37. Re3 {[%emt 0:00:14]} Rd8 {[%emt 0:00:30]} (37... Rg8 {is a better defense.} 38. a4 Ng3) 38. Kb1 {[%emt 0:01:15]} Nd2+ {[%emt 0:00:05]} 39. Kc2 $1 {[%emt 0:00:06]} Nxb3 {[%emt 0:00:48]} 40. Rxb3 {[%emt 0:00:03] KR-KR} (40. Kxb3 Ke6 $16) 40... b6 $2 {[%emt 0:00:20]} (40... Ke6 41. Rxb7 Rf8) 41. Rd3 {[%emt 0:30:04]} Rh8 {[%emt 0:30:39]} 42. f5 {[%emt 0:03:29] And now Rd7+ would win.} Rh5 {[%emt 0:01:08]} 43. e6+ {[%emt 0:00:45]} ({Not} 43. Rd7+ Ke8 44. Rxa7 Rxf5 $16) 43... Kf6 {[%emt 0:00:00]} 44. Re3 {[%emt 0:00:00] aiming for e7.} Rh8 {[%emt 0:00:00] [#]} 45. Rf3 {[%emt 0:00:00] Hoping for Kd3.} Rd8 {[%emt 0:00:00]} (45... Rh4 46. Kd3 Rd4+ 47. Ke2 Rd8) 46. Kc3 {[%emt 0:00:00]} b5 {[%emt 0:00:00]} 47. Rd3 {[%emt 0:00:00]} Rh8 {[%emt 0:00:00] [#]} 48. Rd5 {[%emt 0:00:00]} Rh3+ {[%emt 0:00:00]} 49. Kd2 {[%emt 0:00:00]} Rh2+ {[%emt 0:00:00]} 50. Ke3 {[%emt 0:00:00]} Rxb2 {[%emt 0:00:00] [#]} 51. Re5 $3 {[%emt 0:00:00][%mdl 512]} Ke7 {[%emt 0:00:00]} (51... Rb1 52. Ke2) 52. f6+ {[%emt 0:00:00] White mates.} Kxf6 {[%emt 0:00:00]} 53. e7 {[%emt 0:00:00]} Rb1 {[%emt 0:00:34]} 54. e8=Q {[%emt 0:00:00]} Re1+ {[%emt 0:00:03] Weighted Error Value: White=0.32/Black=0.66} 1-0

[Event "FIDE WY-U16 Olympiad 2022"]
[Site "Nakhchivan"]
[Date "2022.10.04"]
[Round "3.2"]
[White "Begmuratov, Khumoyun"]
[Black "Celik, Hasan Huseyin"]
[Result "1/2-1/2"]
[ECO "B10"]
[WhiteElo "2367"]
[BlackElo "2323"]
[Annotator "TA"]
[PlyCount "79"]
[EventDate "2022.10.02"]
[EventType "team-tourn"]
[EventCountry "AZE"]
[SourceTitle "playchess.com"]
[Source "ChessBase"]
[SourceQuality "1"]
[WhiteTeam "Uzbekistan"]
[BlackTeam "Turkey"]
[WhiteTeamCountry "UZB"]
[BlackTeamCountry "TUR"]
[TimeControl "40/5400+30:1800+30"]

{[%evp 9,79,-8,23,5,26,12,0,0,0,0,-10,-8,0,0,1,-22,4,-15,-19,-37,0,-81,-79,-108,-112,-140,-144,-130,-175,-191,-172,-176,-95,-95,-110,-110,-110,-108,-117,-110,-97,-97,-97,-97,-97,-97,-97,-97,-97,-99,-75,-83,-75,-75,-75,-75,-85,-85,-85,-85,-85,-85,-85,-85,-85,-85,-85,-85,-20,-20,-20,-20]} 1. e4 {[%emt 0:00:03]} c6 {[%emt 0:00:13]} 2. Nf3 {[%emt 0:01:41]} d5 {[%emt 0:00:08]} 3. d3 {[%emt 0:01:28]} dxe4 {[%emt 0:02:00]} 4. dxe4 {[%emt 0:00:11]} Qxd1+ {[%emt 0:00:06]} 5. Kxd1 {[%emt 0:00:07]} Bg4 {[%emt 0:00:08]} 6. Be3 {[%emt 0:06:57] B10: Caro-Kann: 2 d3 and 2 c4.} e6 {[%emt 0:04:33]} 7. Nbd2 {[%emt 0:00:20]} Nd7 {[%emt 0:00:31] [#]} 8. c3 $146 {[%emt 0:05:24]} ({Predecessor:} 8. Nb3 O-O-O 9. Ke1 Ngf6 10. Nfd2 e5 11. Bc4 Bh5 12. f3 Nb6 13. a4 Bb4 14. Be2 {1-0 (43) Hadzovic,A (2284)-Kurtcehajic,S (1978) Sarajevo 2021}) 8... Bc5 {[%emt 0:00:45]} 9. Bxc5 {[%emt 0:04:16]} Nxc5 {[%emt 0:00:03]} 10. b4 {[%emt 0:09:12]} Bxf3+ {[%emt 0:01:12]} 11. gxf3 {[%emt 0:00:01]} Nd7 {[%emt 0:00:33]} 12. Rg1 {[%emt 0:02:05]} g6 {[%emt 0:00:25]} 13. f4 {[%emt 0:03:44]} (13. Nc4 $5 {[%cal Rc4d6]}) 13... Ngf6 {[%emt 0:01:44]} 14. Ke2 {[%emt 0:02:42]} a5 {[%emt 0:03:46]} (14... O-O-O $5 {[%cal Re6e5]}) 15. b5 {[%emt 0:12:09]} (15. a4 $11 {keeps the balance.}) 15... cxb5 $17 {[%emt 0:04:17]} 16. Ke3 {[%emt 0:06:19]} Rc8 {[%emt 0:04:37][%cal Ba8c8,Bc8c3,Bc3h3][%mdl 32]} 17. Bxb5 {[%emt 0:04:28]} Rxc3+ {[%emt 0:00:27]} 18. Kd4 {[%emt 0:00:01]} Rh3 {[%emt 0:05:34]} ({Not} 18... Rc2 19. Kd3 Rc5 20. Rac1 $15) 19. Nc4 {[%emt 0:08:21]} Ke7 {[%emt 0:09:55]} (19... Rxh2 20. Rgb1 $17) 20. Nxa5 {[%emt 0:00:51] [#]} Ra8 {[%emt 0:06:08]} (20... Rxh2 21. Bxd7 Nxd7 22. Rgb1 $17) ({Black should play} 20... Rf3 $1 $19 {[%cal Rf3f4]} 21. Nxb7 Rxf4 22. Bxd7 e5+ 23. Ke3 Rxe4+ 24. Kf3 Rf4+ 25. Kg2 Nxd7) 21. Nxb7 {[%emt 0:03:38]} Ra7 {[%emt 0:02:32]} 22. Bxd7 {[%emt 0:06:50]} Nxd7 {[%emt 0:00:06][%cal Ra7a4]} 23. Nc5 {[%emt 0:00:04] Against Ra4+} Nxc5 {[%emt 0:00:05]} 24. Kxc5 {[%emt 0:00:04][%mdl 4096] Endgame KRR-KRR} Rha3 {[%emt 0:00:04]} ({Inferior is} 24... Rxh2 25. a4 $15) 25. Rgb1 {[%emt 0:01:43]} Rxa2 {[%emt 0:00:37]} 26. Rb7+ {[%emt 0:05:21]} Rxb7 {[%emt 0:00:21]} 27. Rxa2 {[%emt 0:00:03][%cal Of4f5] KR-KR} Rb3 {[%emt 0:01:46]} 28. Kd4 {[%emt 0:02:22][%cal Of4f5]} Rf3 {[%emt 0:03:18]} 29. Ke5 {[%emt 0:08:59]} f6+ {[%emt 0:00:07]} 30. Kd4 {[%emt 0:00:04]} Rxf4 {[%emt 0:00:06] Threatens to win with ...h5.} 31. Ra7+ {[%emt 0:00:55]} Kf8 {[%emt 0:00:12]} 32. Ke3 {[%emt 0:01:51]} Rh4 {[%emt 0:00:16] Strongly threatening ...g5.} 33. Ra8+ {[%emt 0:00:05]} Kg7 {[%emt 0:00:13] [#] ...g5 is the strong threat.} 34. Ra7+ {[%emt 0:00:02]} Kh6 {[%emt 0:00:36] White must now prevent ...e5.} 35. Ra6 {[%emt 0:00:12]} f5 {[%emt 0:06:21]} 36. Rxe6 {[%emt 0:00:26]} fxe4 {[%emt 0:00:02]} ({Much weaker is} 36... Rxh2 $6 37. exf5 Kg7 38. fxg6 $11) 37. Rxe4 {[%emt 0:00:04]} Rxh2 {[%emt 0:00:09]} 38. Kf3 {[%emt 0:00:19]} Rh1 {[%emt 0:00:13]} ({Black should try} 38... Kg5 $17) 39. Kg2 $1 $11 {[%emt 0:00:41]} Ra1 {[%emt 0:00:06]} 40. Re7 $1 {[%emt 0:00:05] Weighted Error Value: White=0.10 (very precise) /Black=0.13 (very precise)} 1/2-1/2

[Event "FIDE WY-U16 Olympiad 2022"]
[Site "Nakhchivan"]
[Date "2022.10.04"]
[Round "3.2"]
[White "Batista Rosas, Nicolas Arturo"]
[Black "Zhakshylykov, Erzhan"]
[Result "0-1"]
[ECO "D86"]
[WhiteElo "1941"]
[BlackElo "2260"]
[Annotator "TA"]
[PlyCount "92"]
[EventDate "2022.10.02"]
[EventType "team-tourn"]
[EventCountry "AZE"]
[SourceTitle "playchess.com"]
[Source "ChessBase"]
[SourceQuality "1"]
[WhiteTeam "Panama"]
[BlackTeam "Kyrgyzstan"]
[WhiteTeamCountry "PAN"]
[BlackTeamCountry "KGZ"]
[TimeControl "40/5400+30:1800+30"]

{[%evp 23,92,20,29,11,31,18,17,10,21,0,16,0,32,27,38,26,34,10,12,6,7,-53,-65,-58,-54,-59,-70,-107,-122,-245,-237,-249,-241,-298,-241,-233,-229,-221,-200,-213,-197,-236,-193,-223,-84,-212,-199,-362,-360,-394,-370,-398,-325,-365,-295,-456,-463,-471,-482,-545,-558,-543,-535,-1485,-458,-752,-750,-742,-668,-29987,-2132]} 1. d4 {[%emt 0:00:21]} Nf6 {[%emt 0:00:09]} 2. c4 {[%emt 0:00:07]} g6 {[%emt 0:00:06]} 3. Nc3 {[%emt 0:00:16]} d5 {[%emt 0:00:07]} 4. cxd5 {[%emt 0:00:06]} Nxd5 {[%emt 0:00:05]} 5. e4 {[%emt 0:00:06]} Nxc3 {[%emt 0:00:03]} 6. bxc3 {[%emt 0:00:06]} Bg7 {[%emt 0:00:04]} 7. Bc4 {[%emt 0:00:34]} c5 {[%emt 0:00:32]} 8. Ne2 {[%emt 0:00:12]} Nc6 {[%emt 0:01:29]} 9. Be3 {[%emt 0:00:17]} O-O {[%emt 0:00:21]} 10. O-O {[%emt 0:00:15]} Bg4 {[%emt 0:00:38]} 11. f3 {[%emt 0:00:49]} Bd7 {[%emt 0:00:06] is cutting edge theory.} 12. Rb1 {[%emt 0:07:25]} Qc7 {[%emt 0:06:04]} 13. Qd2 {[%emt 0:10:10] D87: Exchange Grünfeld: Classical Line: Variations without ...cxd4.} Rfd8 {[%emt 0:37:56][%cal Oc6d4] [#]} 14. a3 $146 {[%emt 0:16:41]} ({Predecessor:} 14. Bd5 e6 15. Bxc6 Bxc6 16. Rb3 b5 17. Bh6 Bxh6 18. Qxh6 b4 19. Rc1 Ba4 20. Rb2 cxd4 21. cxd4 {½-½ (60) Duda,J (2743)-Shankland,S (2691) chess24.com INT 2021}) 14... Be8 {[%emt 0:03:50]} 15. Rfc1 {[%emt 0:13:01] The position is equal.} Na5 {[%emt 0:09:39]} 16. Ba2 {[%emt 0:05:12]} b5 {[%emt 0:02:25]} 17. Nf4 {[%emt 0:04:57]} c4 {[%emt 0:08:18]} 18. Nd5 {[%emt 0:05:54]} Qd7 {[%emt 0:00:38]} 19. Bg5 {[%emt 0:02:04]} f6 {[%emt 0:00:50]} 20. Bh4 {[%emt 0:05:48]} Bf7 {[%emt 0:00:46]} 21. Ne3 {[%emt 0:03:46]} a6 {[%emt 0:01:11]} 22. f4 {[%emt 0:04:44]} (22. Qb2 $11) 22... Qd6 $15 {[%emt 0:09:29][%csl LRa3,LRf4]} 23. Qf2 {[%emt 0:03:47]} Qxa3 {[%emt 0:04:48]} 24. e5 {[%emt 0:00:10]} Nb3 {[%emt 0:00:10] Prevents Ra1.} 25. Rd1 {[%emt 0:01:47] [#]} Qa5 $1 {[%emt 0:00:35] Black is more active.} 26. exf6 {[%emt 0:06:45]} (26. Qc2 $17) 26... exf6 $19 {[%emt 0:00:20]} 27. Ng4 {[%emt 0:00:16]} Rd6 {[%emt 0:02:10]} ({Not} 27... Qxc3 28. Bxb3 cxb3 29. Bxf6 $17) 28. f5 {[%emt 0:01:03]} g5 {[%emt 0:02:05]} 29. Bg3 {[%emt 0:00:02]} Rdd8 {[%emt 0:01:10] aiming for ...h5.} 30. Qc2 {[%emt 0:02:34]} h5 {[%emt 0:06:40]} 31. Ne3 {[%emt 0:00:08]} Re8 {[%emt 0:00:18]} 32. Re1 {[%emt 0:01:24]} Rad8 {[%emt 0:00:47]} 33. Nf1 {[%emt 0:03:07]} Bd5 {[%emt 0:01:32]} (33... h4 $19 34. Rxe8+ Rxe8) 34. Bf2 {[%emt 0:02:15]} (34. Ne3 $17 Bf7 35. Bf2) 34... h4 {[%emt 0:00:30]} 35. Nd2 $2 {[%emt 0:01:12]} (35. Ne3 Bf7 36. Qb2) 35... Nxd2 {[%emt 0:00:12]} 36. Qxd2 {[%emt 0:00:01]} Qc7 {[%emt 0:00:22]} 37. Ra1 {[%emt 0:00:22]} Qc6 {[%emt 0:00:44]} 38. Be3 {[%emt 0:00:14]} Re7 {[%emt 0:00:25]} 39. Bf2 {[%emt 0:01:01]} (39. Bb1 {was necessary.}) 39... Rde8 {[%emt 0:00:45]} 40. Rxe7 {[%emt 0:00:57]} Rxe7 {[%emt 0:00:05]} 41. Be3 {[%emt 0:30:05]} Qe8 {[%emt 0:31:45]} 42. Re1 {[%emt 0:00:23]} g4 {[%emt 0:00:00][%cal Og7h6] Threatens to win with ...Bh6!} 43. Kf2 {[%emt 0:00:00] [#]} Be4 {[%emt 0:00:00]} (43... Bh6 $142 $1 {[%cal Og4g3][%mdl 512] Hoping for ...g3+!} 44. Bxh6 Rxe1) 44. Bb1 {[%emt 0:00:00]} (44. Bf4 $142 Bxf5 45. Bb1 Bxb1 46. Rxb1) 44... g3+ {[%emt 0:00:00]} 45. hxg3 {[%emt 0:00:00]} hxg3+ {[%emt 0:00:00]} 46. Ke2 {[%emt 0:00:00]} Bxb1 {[%emt 0:00:00] Weighted Error Value: White=0.71/Black=0.29 (precise)} (46... Qh5+ $142 47. Kf1 Bxb1 48. Rxb1 Qxf5+ 49. Ke2 Qxb1 50. Kf3 Qe4+ 51. Kxg3 Qxe3+ 52. Qxe3 Rxe3+ 53. Kf4 Rxc3 54. g4 Rd3 55. Ke4 b4 56. Kd5 c3 57. Ke4 c2 58. Kxd3 c1=Q 59. d5 b3 60. d6 b2 61. Ke2 b1=Q 62. Kf3 Qd3+ 63. Kg2 Qcf1+ 64. Kh2 Qxd6#) 0-1

[Event "FIDE WY-U16 Olympiad 2022"]
[Site "Nakhchivan"]
[Date "2022.10.04"]
[Round "3.3"]
[White "Ozkan, Taha"]
[Black "Rakhmatullaev, Almas"]
[Result "1-0"]
[ECO "E62"]
[WhiteElo "2299"]
[BlackElo "2321"]
[Annotator "TA"]
[PlyCount "117"]
[EventDate "2022.10.02"]
[EventType "team-tourn"]
[EventCountry "AZE"]
[SourceTitle "playchess.com"]
[Source "ChessBase"]
[SourceQuality "1"]
[WhiteTeam "Turkey"]
[WhiteTeamCountry "TUR"]
[TimeControl "40/5400+30:1800+30"]

{[%evp 23,117,17,20,0,-2,-14,-11,-20,-18,-17,-7,-26,-22,-16,-16,-91,-36,-58,-41,-79,-33,-91,-79,-88,-81,-130,-138,-141,-137,-221,-243,-254,-230,-232,-188,-172,-65,-424,-233,-423,-423,-393,-416,-439,-433,-420,-90,-85,-83,-146,-147,-148,-157,-150,-156,-153,-131,-1045,0,0,0,0,0,0,152,0,78,77,120,119,212,213,199,203,204,202,271,237,234,177,327,327,327,327,334,334,1278,982,29961,29962,29956,29963,29973,29976,29984,29979]} 1. d4 {[%emt 0:00:04]} Nf6 {[%emt 0:00:59]} 2. c4 {[%emt 0:00:11]} g6 {[%emt 0:01:03]} 3. Nc3 {[%emt 0:00:17]} Bg7 {[%emt 0:00:04]} 4. g3 {[%emt 0:00:23]} O-O {[%emt 0:01:15]} 5. Bg2 {[%emt 0:00:06]} d6 {[%emt 0:01:10]} 6. Nf3 {[%emt 0:00:11]} Bf5 {[%emt 0:01:00]} 7. Nh4 {[%emt 0:04:09]} Bc8 {[%emt 0:00:10]} 8. Nf3 {[%emt 0:03:12]} Bf5 {[%emt 0:02:39]} 9. Nh4 {[%emt 0:00:15]} Bc8 {[%emt 0:04:14]} 10. O-O {[%emt 0:00:07]} c6 {[%emt 0:00:43]} 11. Nf3 {[%emt 0:02:35]} Bf5 {[%emt 0:00:21]} 12. Ne1 {[%emt 0:00:07]} e5 {[%emt 0:00:07]} 13. dxe5 {[%emt 0:07:20] E62: King's Indian: Fianchetto: 6...c6 and Panno Variation (6...Nc6) without ...a6.} dxe5 {[%emt 0:00:04]} 14. Qb3 {[%emt 0:00:29]} Qc7 {[%emt 0:04:26] [#]} 15. h3 $146 {[%emt 0:02:58] The position is equal.} ({Predecessor:} 15. Nd3 Bxd3 16. exd3 Rd8 17. Be3 Na6 18. Rac1 Ng4 19. Ne4 Nxe3 20. fxe3 Bh6 21. Rf3 f5 22. c5+ Qf7 23. Rc4 Qe6 24. Bh3 Rd7 25. g4 fxe4 {1-0 (51) Contin,D (2366)-Siccardi,P (2055) Buenos Aires 2013}) 15... Na6 {[%emt 0:04:35]} 16. Be3 {[%emt 0:01:31]} Rfd8 {[%emt 0:05:59]} 17. Rc1 {[%emt 0:04:20]} Nd7 {[%emt 0:07:07]} 18. g4 {[%emt 0:04:54]} Be6 {[%emt 0:04:46]} 19. Ne4 {[%emt 0:03:57]} (19. Nd5 $11 Qb8 20. Ne7+ Kh8 21. Qa3) 19... h6 {[%emt 0:14:07]} (19... f5 $17 20. gxf5 gxf5) 20. g5 {[%emt 0:06:10]} hxg5 {[%emt 0:01:01]} 21. Nxg5 {[%emt 0:00:12]} Nf8 {[%emt 0:06:42]} ({Black should play} 21... Bf5 $17) 22. Nxe6 {[%emt 0:06:48]} ({Better is} 22. Nef3 $15) 22... Nxe6 $17 {[%emt 0:00:04]} 23. Nf3 {[%emt 0:01:39]} Qe7 {[%emt 0:07:09]} 24. Rfd1 {[%emt 0:04:37]} (24. h4 $142) 24... e4 {[%emt 0:11:00]} 25. Ne1 {[%emt 0:01:19]} f5 {[%emt 0:01:32][%cal Bf7f5,Bf5f4][%mdl 32] And now ...f4 would win.} 26. c5 {[%emt 0:07:58]} (26. Rxd8+ $17 Rxd8 27. Rd1) 26... Kh7 $19 {[%emt 0:03:26]} 27. h4 {[%emt 0:09:23]} f4 {[%emt 0:05:55]} (27... Nexc5 28. Qa3 $17) 28. Bd2 {[%emt 0:01:11]} Nd4 {[%emt 0:06:34]} (28... Nexc5 $2 29. Qc2) 29. Qc4 {[%emt 0:00:07]} Rd5 {[%emt 0:02:24]} (29... Qxh4 30. Bc3 e3 31. fxe3 fxe3 32. Bxd4 Rxd4 33. Rxd4 Qxd4 34. Nd3 $11) (29... b5 $1 $19 {[%cal Rb5c4]} 30. cxb6 axb6) 30. b4 $2 {[%emt 0:01:18][%mdl 8192]} (30. Bxf4 $15 Qxh4 31. e3 Rxc5 32. Qf1 Rxc1 33. Rxc1) 30... Rad8 {[%emt 0:01:47]} (30... Qxh4 $2 31. Bxf4 Qxf4 32. e3 $19) (30... e3 $142 31. h5 (31. fxe3 $2 fxe3 32. Rc3 exd2 $19) 31... Rxh5 32. Bxe3 fxe3 33. Rxd4 exf2+ 34. Kxf2 Bxd4+ 35. Qxd4 Rd8) 31. h5 $2 {[%emt 0:01:45]} (31. Bxf4 Qxh4 32. e3 Nf3+ 33. Bxf3 exf3 34. Rxd5 Rxd5 35. Bd6 (35. Bg3 $2 Qxc4 36. Rxc4 Rd1 $19) 35... Qxc4 36. Rxc4) 31... e3 {[%emt 0:02:36]} (31... Qg5 $2 32. hxg6+ Kh6 33. Kf1 $19) 32. hxg6+ {[%emt 0:00:34]} Kh8 {[%emt 0:00:24]} 33. fxe3 {[%emt 0:00:04]} fxe3 {[%emt 0:00:05]} 34. Rc3 {[%emt 0:01:35]} (34. Bc3 $2 Qh4 35. Rxd4 Qf2+ 36. Kh2 Rh5+ 37. Rh4 Rxh4+ 38. Qxh4+ Qxh4+) 34... Qh4 $2 {[%emt 0:01:22]} (34... exd2 $2 35. Rh3+ Kg8 36. Rxd2 $19) (34... Re5 $19 {has better winning chances.} 35. Bc1 Nf3+ $1 {[%mdl 512]} 36. Bxf3 (36. Nxf3 $2 Rxd1+ 37. Kh2 Re4 $19) 36... Rxd1) 35. Bxe3 $17 {[%emt 0:01:18]} Nf3+ {[%emt 0:00:36][%mdl 64] Discovered Attack, Decoy} (35... Rh5 $2 36. Bf2 (36. Kf1 Nxb4 37. Bxd4 Rxd4 $16) 36... Qf6 37. Rd2 $18) 36. Bxf3 {[%emt 0:01:28]} (36. exf3 $142 Qxc4 37. Rxc4 Rxd1 38. Kf2) 36... Qg3+ {[%emt 0:00:15]} 37. Kf1 {[%emt 0:00:37]} Rxd1 {[%emt 0:00:08][%csl Gg3][%cal Rd1e1]} 38. Bf2 {[%emt 0:00:42]} Qh3+ {[%emt 0:00:41]} (38... Qxg6 39. Qh4+ Qh7 40. Rc4 $15) 39. Kg1 {[%emt 0:00:01]} Nc7 {[%emt 0:00:58] ...Bd4 is the strong threat.} 40. Re3 $2 {[%emt 0:01:06][%mdl 8192]} (40. Rc1 $17) 40... Qh6 $2 {[%emt 0:00:31]} (40... Bd4 $19 41. g7+ Kxg7 42. Re7+ Kh8 43. Bxd4+ R8xd4) 41. Re4 $1 $11 {[%emt 0:30:54]} (41. Qh4 $2 Qxh4 42. Bxh4 Bd4 $19) 41... Qxg6+ 42. Rg4 {[%emt 0:01:14]} Qe6 {[%emt 0:30:42]} 43. Qf4 {[%emt 0:01:42]} Nd5 {[%emt 0:00:00]} ({Black should try} 43... Be5 $11 44. Qg5 R8d7) 44. Qg5 $2 {[%emt 0:00:00] Really sharp!} (44. Qg3 $1 $16 {[%cal Rg3h4] Threatens to win with Qh4+.} Qe7 45. Qh3+ (45. e4 Nf6 $18) 45... Kg8 46. e4 (46. Be4 $2 Nf6 $19) 46... Rxe1+ 47. Bxe1) 44... Rg8 {[%emt 0:00:00] [#]} (44... Qf6 $11 45. Qh5+ Qh6 46. Qxh6+ Bxh6) 45. Qh4+ $1 $16 {[%emt 0:00:00]} ({Much worse is} 45. e4 Rxe1+ 46. Kg2 Ne3+ 47. Bxe3 Rxe3 48. Qxe3 Be5 $11) 45... Qh6 {[%emt 0:00:00]} 46. e4 $40 {[%emt 0:00:00][%csl LRd1,LRd5][%mdl 128] White has strong attack.} Rxe1+ {[%emt 0:00:00]} 47. Bxe1 $18 {[%emt 0:00:00]} Nf6 {[%emt 0:00:00]} 48. Qxh6+ {[%emt 0:00:00]} Bxh6 {[%emt 0:00:00]} 49. Bc3 {[%emt 0:00:00]} Rxg4+ {[%emt 0:00:00]} 50. Bxg4 {[%emt 0:00:00][%mdl 4096] Endgame KBB-KBN} Bg7 {[%emt 0:00:04]} 51. Bc8 {[%emt 0:00:00]} Nxe4 {[%emt 0:00:49]} (51... b6 $142 52. cxb6 axb6) 52. Bxg7+ {[%emt 0:00:00]} Kxg7 {[%emt 0:00:01]} 53. Bxb7 {[%emt 0:00:00] KB-KN} Nc3 {[%emt 0:00:02] [#]} 54. a3 {[%emt 0:00:20]} ({Weaker is} 54. Bxc6 Nxa2 55. b5 Nb4 $16) 54... Nb5 $2 {[%emt 0:00:58]} (54... Kf6 55. Bxc6 Ke5) 55. Bxc6 {[%emt 0:02:23]} Nxa3 {[%emt 0:00:02]} 56. b5 {[%emt 0:00:41][%cal Bb4b5,Bb5b6,Bb6b7][%mdl 32] White mates.} Nc4 {[%emt 0:00:55]} 57. Bd5 {[%emt 0:00:05]} Ne3 {[%emt 0:03:34] [#]} 58. b6 $1 {[%emt 0:00:45]} Nxd5 {[%emt 0:01:41]} (58... axb6 59. cxb6) 59. b7 {[%emt 0:00:05] Never resign too early!  Weighted Error Value: White=0.36/Black=0.68} ({And not} 59. bxa7 Nc7 $11) 1-0